bitfinex-derivatives/quotes_ETHF0:USTF0_20250830
["timestamp","ask_amount","ask_price","bid_price","bid_amount"]
[1756595141685,3.2078,4367.7,4367.0,0.3074]
[1756595141891,0.506,4367.1,4367.0,0.5013]
[1756595143494,0.3055,4367.4,4367.3,0.1939]
[1756595143798,0.3055,4367.6,4367.3,0.1939]
[1756595143999,0.3055,4367.6,4367.5,0.5013]
[1756595144199,0.506,4367.6,4367.5,0.5013]
[1756595147598,0.506,4367.6,4367.1,0.3074]
[1756595147901,0.2005,4367.2,4367.1,0.7353]
[1756595148100,0.506,4367.2,4367.1,0.7353]
[1756595148799,0.2005,4367.0,4366.9,3.5152]
[1756595149101,0.506,4367.0,4366.9,3.9431]
[1756595152398,0.3055,4367.0,4366.9,3.9431]
[1756595152601,0.506,4367.6,4367.5,0.5013]
[1756595153906,0.506,4367.6,4367.5,0.1939]
[1756595154100,0.2005,4367.6,4367.0,0.3074]
[1756595154302,0.506,4367.1,4367.0,0.7343]
[1756595161408,0.506,4367.1,4367.0,0.5013]
[1756595161609,0.506,4366.8,4366.6,0.3074]
[1756595161807,3.2078,4368.4,4368.3,0.3074]
[1756595162007,3.7138,4368.4,4368.3,0.5013]
[1756595164908,3.7138,4368.4,4368.2,0.165]
[1756595165502,0.3055,4368.3,4368.2,1.3873326]
[1756595165707,0.506,4368.3,4368.2,1.8886326]
[1756595166309,0.506,4368.3,4368.2,0.6663]
[1756595185430,0.506,4368.3,4368.2,1.8886326]
[1756595188322,0.506,4368.3,4368.2,0.6663]
[1756595195832,0.2005,4368.3,4368.0,1.63507443]
[1756595196132,0.2966,4367.9,4367.8,0.2837]
[1756595196337,0.5023,4367.9,4367.8,0.2837]
[1756595196636,0.5023,4367.9,4367.8,0.4815]
[1756595197235,0.2057,4367.6,4367.4,1.63507443]
[1756595197438,0.5007,4367.4,4367.3,1.82987443]
[1756595197739,0.5007,4367.4,4367.3,0.1948]
[1756595198236,0.5007,4367.4,4367.3,1.42035926]
[1756595198638,0.5007,4367.4,4367.3,1.71565926]
[1756595200239,0.5007,4367.4,4367.3,0.4901]
[1756595210039,3.2078,4367.7,4367.6,0.4901]
[1756595210446,3.2078,4367.7,4367.6,0.71906]
[1756595210838,3.2078,4367.7,4367.6,0.4901]
[1756595211146,0.5007,4368.6,4368.5,0.4901]
[1756595217750,0.2979,4368.6,4368.5,0.4901]
[1756595217951,0.5007,4368.6,4368.5,0.4901]
[1756595220244,0.5007,4368.6,4368.0,1.22202493]
[1756595220449,0.5007,4368.1,4368.0,1.41682493]
[1756595221047,0.5007,4368.1,4368.0,1.71212493]
[1756595221554,0.5007,4368.1,4368.0,0.4901]
[1756595221853,0.5007,4368.1,4368.0,1.71212493]
[1756595222241,0.2979,4368.6,4368.1,0.2953]
[1756595222442,0.2979,4368.5,4368.0,1.22202493]
[1756595222659,0.5007,4368.1,4368.0,1.41682493]
[1756595222844,0.5007,4368.1,4368.0,0.1948]
[1756595223250,0.5007,4368.1,4368.0,0.4901]
[1756595229151,3.2078,4368.7,4368.0,0.4901]
[1756595229360,3.4912,4368.7,4368.6,0.4886]
[1756595229554,3.6899,4368.7,4368.6,0.4886]
[1756595230548,3.6899,4368.7,4368.6,0.1887]
[1756595231156,3.4065,4368.7,4368.2,0.2999]
[1756595231356,0.4821,4368.2,4368.1,0.1887]
[1756595232061,0.4821,4368.2,4368.1,0.4886]
[1756595233158,0.1987,4368.2,4368.0,1.22202493]
[1756595233359,0.4821,4368.1,4368.0,1.22202493]
[1756595234360,0.4821,4368.1,4367.9,0.232]
[1756595234361,0.4821,4368.1,4367.9,1.22202493]
[1756595234560,0.4821,4367.8,4367.7,1.22202493]
[1756595234758,0.4821,4367.7,4367.6,4.91842493]
[1756595235560,0.4821,4367.7,4367.6,3.6964]
[1756595236564,0.4821,4367.7,4367.6,0.4886]
[1756595237163,0.2834,4367.6,4367.4,0.5319]
[1756595237365,0.4821,4367.5,4367.4,0.7206]
[1756595246272,0.2834,4368.0,4367.5,0.2999]
[1756595246470,3.2078,4368.3,4367.5,0.2999]
[1756595246471,0.1987,4367.6,4367.5,0.4886]
[1756595246771,0.4821,4367.6,4367.5,0.4886]
[1756595253671,0.2834,4367.7,4367.6,0.2999]
[1756595253870,0.2834,4367.7,4367.6,0.4886]
[1756595254074,0.4821,4367.7,4367.6,0.4886]
[1756595256279,0.2834,4368.3,4368.2,0.1887]
[1756595256476,0.4821,4368.3,4368.2,0.4886]
[1756595258476,3.2078,4368.4,4368.3,0.4783]
[1756595259076,3.5026,4368.4,4368.3,0.4783]
[1756595261074,3.6935,4368.4,4368.3,0.4783]
[1756595262581,0.2948,4368.8,4368.3,0.1869]
[1756595262878,3.6935,4368.9,4368.8,0.4783]
[1756595265275,0.4857,4368.9,4368.8,0.4783]
[1756595265480,0.2948,4369.3,4368.9,0.2914]
[1756595265682,0.4857,4369.3,4369.2,0.4783]
[1756595271480,0.1909,4369.0,4368.9,0.2914]
[1756595271788,0.4857,4369.0,4368.9,0.2914]
[1756595271980,0.4857,4369.0,4368.9,0.4783]
[1756595284191,0.4857,4369.0,4368.9,0.231]
[1756595287694,0.4857,4369.0,4368.9,0.5311]
[1756595287892,0.4857,4369.0,4368.9,0.7372]
[1756595288301,0.4857,4369.0,4368.9,0.231]
[1756595290399,0.4857,4369.0,4368.9,0.7372]
[1756595291402,0.4857,4369.0,4368.9,0.231]
[1756595296309,0.4857,4369.0,4368.9,0.5311]
[1756595296605,0.4857,4369.0,4368.9,0.7372]
[1756595306516,0.4857,4369.0,4368.9,0.231]
[1756595306813,0.4857,4369.0,4368.9,0.5311]
[1756595307015,0.4857,4369.0,4368.9,0.7372]
[1756595308516,0.3081,4369.3,4369.2,0.2061]
[1756595309116,0.3081,4369.3,4369.2,0.5062]
[1756595310015,3.2078,4369.4,4369.3,0.3001]
[1756595310218,3.7072,4369.9,4369.3,0.3001]
[1756595310518,0.1913,4369.4,4369.3,0.7372]
[1756595310916,0.4994,4369.4,4369.3,0.7372]
[1756595317421,0.3068,4369.8,4369.4,0.2949]
[1756595317628,0.4982,4369.8,4369.7,0.4953]
[1756595320317,3.2078,4369.9,4369.7,0.2004]
[1756595320521,3.706,4369.9,4369.8,0.4953]
[1756595325030,0.3068,4369.8,4369.3,0.5259]
[1756595325225,0.4982,4369.4,4369.1,3.2078]
[1756595325423,0.4982,4369.3,4369.2,0.2949]
[1756595326029,0.4982,4369.3,4369.2,0.4953]
[1756595328634,0.4982,4369.2,4369.1,3.7337]
[1756595328933,0.4982,4369.2,4369.1,3.9341]
[1756595335139,0.3068,4369.8,4369.7,0.2004]
[1756595335339,0.53566,4369.8,4369.7,0.4953]
[1756595335640,0.4982,4369.8,4369.7,0.4953]
[1756595338349,3.5146,4369.9,4369.8,0.4953]
[1756595338549,3.706,4369.9,4369.8,0.4953]
[1756595339349,3.5146,4369.9,4369.8,0.4953]
[1756595339651,3.2078,4369.9,4369.8,0.4953]
[1756595339954,3.2078,4369.9,4369.8,0.7263]
[1756595340942,0.4982,4369.9,4369.8,0.7263]
[1756595341155,0.1,4370.2,4370.1,0.2004]
[1756595341347,0.1,4370.2,4370.1,0.4953]
[1756595341547,0.5982,4370.2,4370.1,0.4953]
[1756595343249,0.4982,4369.6,4369.5,0.4953]
[1756595343448,0.4982,4369.6,4369.5,0.7263]
[1756595344851,0.4982,4369.6,4369.5,0.4953]
[1756595345052,0.5982,4370.2,4370.1,0.2004]
[1756595345254,0.5982,4370.2,4369.6,0.2949]
[1756595345448,0.5982,4370.2,4370.1,0.2004]
[1756595345655,0.5982,4370.2,4370.1,0.4953]
[1756595348355,0.5982,4370.2,4369.6,0.3036]
[1756595348748,0.5982,4370.2,4370.1,0.2042]
[1756595348952,0.5982,4370.2,4370.1,0.5078]
[1756595351754,0.5982,4370.2,4369.5,0.231]
[1756595351954,0.5982,4370.2,4369.6,0.3036]
[1756595354858,3.2078,4370.1,4369.6,0.3036]
[1756595355056,0.19,4369.5,4369.4,0.7388]
[1756595355257,0.478,4369.5,4369.4,0.7388]
[1756595356056,0.478,4369.5,4369.4,0.5078]
[1756595357366,0.478,4369.5,4369.4,0.2042]
[1756595358358,0.478,4369.5,4369.4,0.5078]
[1756595361860,0.478,4369.3,4369.2,3.5114]
[1756595362059,0.478,4369.3,4369.2,3.7156]
[1756595371070,0.478,4369.3,4369.2,0.5078]
[1756595371569,0.19,4368.7,4368.6,0.5078]
[1756595371874,0.478,4368.7,4368.6,0.7388]
[1756595373972,0.478,4368.7,4368.6,0.5078]
[1756595390588,0.288,4368.7,4368.6,0.5078]
[1756595391588,0.4778,4368.7,4368.6,0.5078]
[1756595404809,0.4778,4368.7,4368.4,0.3024]
[1756595405907,0.1898,4368.5,4368.4,0.4215]
[1756595406208,0.4766,4368.5,4368.4,2.12797443]
[1756595406409,0.4766,4368.5,4368.4,2.35897443]
[1756595415206,3.2078,4369.1,4368.4,2.35897443]
[1756595415414,3.2078,4369.1,4368.9,0.4795]
[1756595415613,14.27,4372.6,4368.4,1.86607443]
[1756595415614,0.2921,4370.2,4370.1,0.4795]
[1756595415814,0.80080356,4370.2,4369.6,0.2845]
[1756595416020,3.6939,4369.7,4369.6,0.4795]
[1756595417023,3.6939,4369.7,4369.4,0.231]
[1756595417218,0.1921,4369.5,4369.4,0.7105]
[1756595417417,0.4861,4369.5,4369.4,0.7105]
[1756595423225,0.4861,4369.5,4369.4,0.4795]
[1756595439228,0.294,4369.5,4369.4,0.4795]
[1756595439426,0.2965,4369.6,4369.4,0.195]
[1756595439625,0.2965,4369.6,4369.5,0.4856]
[1756595442838,0.4915,4369.6,4369.5,0.4856]
[1756595453640,3.2078,4369.7,4369.6,0.2948]
[1756595453847,3.6993,4369.7,4369.6,0.4856]
[1756595458557,3.6993,4369.7,4369.6,0.1908]
[1756595459851,3.6993,4369.7,4369.4,0.2948]
[1756595460154,0.195,4369.3,4369.2,0.4856]
[1756595460448,0.4915,4369.3,4369.2,0.71446]
[1756595460649,0.4915,4369.3,4369.2,0.4856]
[1756595464458,0.4915,4369.3,4369.2,0.7166]
[1756595480378,3.2078,4369.7,4369.3,0.2902]
[1756595480676,3.4981,4370.2,4370.1,0.4883]
[1756595480875,3.4981,4370.2,4370.1,0.7193]
[1756595481075,3.7907,4370.2,4370.1,0.7193]
[1756595482677,0.1,4370.2,4370.1,0.7193]
[1756595482878,0.5829,4370.2,4370.1,0.7193]
[1756595483772,0.1,4370.2,4370.1,0.7193]
[1756595484382,0.1,4370.2,4370.1,2.35419352]
[1756595485183,0.1,4370.2,4370.1,0.7193]
[1756595489888,0.1,4370.2,4370.1,0.4883]
[1756595490085,0.1,4370.2,4370.1,0.7193]
[1756595494692,0.5829,4370.2,4370.1,0.4883]
[1756595494895,0.5829,4370.2,4370.1,0.7193]
[1756595496193,0.5829,4370.2,4370.1,0.4883]
[1756595496391,0.5829,4370.2,4370.1,0.7193]
[1756595498994,0.2903,4370.2,4370.1,0.7193]
[1756595499196,0.1,4370.2,4370.1,0.7193]
[1756595506298,0.1,4370.2,4370.1,2.35419352]
[1756595508194,0.1,4370.2,4370.1,0.7193]
[1756595517402,0.1,4370.2,4370.1,2.76416504]
[1756595529709,0.1,4370.2,4370.1,2.53316504]
[1756595529914,0.5745,4370.2,4370.1,2.76416504]
[1756595530214,0.5745,4370.2,4370.1,2.53316504]
[1756595530412,0.5745,4370.2,4370.1,2.76416504]
[1756595532218,0.5745,4370.2,4370.1,2.53316504]
[1756595532418,0.5745,4370.2,4370.1,2.76416504]
[1756595533417,0.1,4370.2,4370.1,2.76416504]
[1756595539220,0.1,4370.2,4370.1,2.55366504]
[1756595539427,0.1,4370.2,4370.1,0.7398]
[1756595540915,1.3,4370.6,4370.5,0.2013]
[1756595541227,1.3,4370.6,4370.5,5.99010024]
[1756595542219,1.7745,4370.6,4370.5,5.99010024]
[1756595542419,1.7745,4370.6,4370.5,3.9476]
[1756595544619,1.3,4370.6,4370.5,3.9476]
[1756595547821,1.3,4370.6,4370.5,5.99010024]
[1756595548222,1.3,4370.6,4370.5,3.9476]
[1756595550733,1.3,4370.6,4370.5,3.9367351]
[1756595553030,1.3,4370.6,4370.5,5.97923534]
[1756595555139,1.7745,4370.6,4370.5,3.9367351]
[1756595555840,1.7745,4370.6,4370.5,5.97923534]
[1756595556339,1.3,4370.6,4370.5,5.97923534]
[1756595557239,1.3,4370.6,4370.5,4.16553509]
[1756595558844,1.3,4370.6,4370.5,3.9367351]
[1756595561341,3.2078,4372.3,4370.6,0.2892]
[1756595561635,0.5129,4371.6,4371.5,3.6984]
[1756595561838,0.5129,4371.6,4371.5,3.9064]
[1756595563145,0.5129,4371.6,4371.5,3.4158]
[1756595564442,0.5129,4371.6,4371.5,3.9064]
[1756595574753,3.2078,4372.3,4371.5,3.9064]
[1756595575055,0.5129,4371.8,4371.7,0.4906]
[1756595575255,0.5129,4371.8,4371.7,0.7206]
[1756595576556,0.5129,4371.8,4371.7,2.34958213]
[1756595577056,0.3075,4371.8,4371.7,2.34958213]
[1756595577454,0.5129,4371.8,4371.7,2.34958213]
[1756595578146,0.5129,4371.8,4371.7,0.7206]
[1756595579152,3.2078,4372.8,4371.7,0.4314]
[1756595579352,0.2054,4372.0,4371.9,0.4906]
[1756595579551,0.5129,4372.0,4371.9,0.7206]
[1756595581255,0.3075,4372.7,4372.0,0.2892]
[1756595581453,0.5129,4372.7,4372.6,0.4906]
[1756595581652,0.5129,4372.7,4372.6,0.7206]
[1756595581853,0.5129,4372.7,4372.6,0.23]
[1756595583362,0.5129,4372.2,4372.1,3.2078]
[1756595583657,0.5129,4372.2,4372.1,3.4378]
[1756595583858,0.5129,4372.2,4372.1,3.727]
[1756595584361,0.5129,4372.2,4372.1,5.55753463]
[1756595584755,0.5129,4372.2,4372.1,4.83693463]
[1756595584963,0.5129,4372.2,4372.1,0.23]
[1756595585949,0.2054,4372.2,4372.1,0.23]
[1756595586154,0.5129,4372.2,4372.1,0.23]
[1756595586856,0.3075,4372.1,4372.0,1.91833463]
[1756595587057,0.5129,4372.1,4372.0,2.14833463]
[1756595587257,0.5129,4372.1,4372.0,0.5192]
[1756595587558,0.5129,4372.1,4372.0,0.23]
[1756595587858,0.5129,4372.1,4372.0,1.86032171]
[1756595588061,0.5129,4372.1,4372.0,1.63032171]
[1756595588252,0.5129,4372.1,4372.0,1.86032171]
[1756595589053,0.5129,4372.1,4372.0,1.63032171]
[1756595589254,0.5129,4372.1,4372.0,1.86032171]
[1756595590361,0.5129,4372.1,4372.0,0.23]
[1756595591463,0.192,4371.9,4371.8,1.63032171]
[1756595591664,0.4822,4371.9,4371.8,0.23]
[1756595592263,0.4822,4371.9,4371.8,0.7016]
[1756595596873,0.4822,4371.9,4371.8,0.4163]
[1756595597366,0.4822,4371.9,4371.8,0.23]
[1756595598060,0.192,4371.9,4371.5,0.2853]
[1756595598262,0.192,4371.9,4371.8,0.23]
[1756595598664,0.4822,4371.9,4371.8,0.23]
[1756595601867,0.4822,4371.9,4371.5,0.2853]
[1756595602072,0.192,4371.4,4371.2,1.91562171]
[1756595602275,0.4822,4371.3,4371.2,2.10192171]
[1756595602466,0.4822,4371.3,4371.2,2.33192171]
[1756595606273,0.4822,4371.3,4371.2,0.7016]
[1756595609081,0.4822,4371.2,4371.1,1.63032171]
[1756595609274,0.192,4370.9,4370.6,0.2853]
[1756595609577,0.4822,4370.8,4370.7,0.5153]
[1756595610474,0.4822,4370.8,4370.7,0.2853]
[1756595610676,0.192,4370.5,4370.4,0.2853]
[1756595610978,0.4822,4370.5,4370.1,1.63032171]
[1756595611279,0.4822,4370.3,4370.2,0.5153]
[1756595611470,0.4822,4370.3,4370.2,0.7016]
[1756595611979,0.4822,4370.3,4370.2,0.4716]
[1756595612173,0.4822,4370.3,4370.2,0.7016]
[1756595613481,0.192,4369.9,4369.8,1.81662171]
[1756595613680,0.4822,4369.9,4369.8,2.33192171]
[1756595614080,0.2902,4369.9,4369.8,2.33192171]
[1756595614282,0.4822,4369.9,4369.8,0.7016]
[1756595614778,0.4822,4369.9,4369.8,0.4716]
[1756595614985,3.69,4369.9,4369.8,0.1863]
[1756595615287,3.69,4369.9,4369.1,0.23]
[1756595615288,3.69,4369.9,4369.2,0.2853]
[1756595615591,3.69,4369.9,4369.3,0.23]
[1756595615892,3.69,4369.9,4369.4,0.2853]
[1756595616088,3.69,4369.9,4369.0,0.2853]
[1756595616390,0.4822,4369.1,4369.0,0.7016]
[1756595617390,0.1959,4368.6,4368.5,0.4713]
[1756595617592,0.496,4368.6,4368.5,0.7013]
[1756595618589,0.496,4368.3,4368.2,3.6791]
[1756595618792,0.496,4368.3,4368.2,3.9091]
[1756595618987,3.2078,4369.3,4368.2,3.9091]
[1756595619291,0.3001,4369.1,4368.3,0.2816]
[1756595619689,0.22890001,4369.0,4368.3,0.2816]
[1756595619891,0.496,4368.9,4368.8,0.1897]
[1756595620089,0.496,4368.9,4368.8,0.4713]
[1756595621296,0.496,4368.9,4368.5,0.2816]
[1756595621489,0.3001,4368.8,4368.3,0.2816]
[1756595621694,0.496,4368.4,4368.3,0.4713]
[1756595622498,0.496,4368.4,4368.3,0.7013]
[1756595624694,0.3001,4369.2,4368.4,0.2816]
[1756595626801,0.1959,4368.5,4368.4,0.4713]
[1756595626991,0.496,4368.5,4368.4,0.4713]
[1756595627398,0.3001,4369.2,4368.4,0.1897]
[1756595627598,0.1959,4368.6,4368.5,0.4713]
[1756595627798,0.496,4368.6,4368.5,0.4713]
[1756595630202,0.1959,4368.5,4368.4,0.1897]
[1756595630403,0.496,4368.5,4368.4,0.7013]
[1756595630803,3.2078,4369.3,4368.5,0.2816]
[1756595631104,0.3001,4369.2,4368.5,0.2816]
[1756595631294,0.1959,4368.6,4368.5,0.4713]
[1756595631500,0.496,4368.6,4368.5,0.4713]
[1756595636802,0.496,4369.2,4369.1,0.1897]
[1756595637007,0.496,4369.2,4369.1,0.7013]
[1756595638206,0.3001,4369.6,4369.5,0.1897]
[1756595638408,0.3001,4369.6,4369.5,0.7013]
[1756595639209,0.496,4369.6,4369.5,0.7013]
[1756595642505,3.2078,4369.8,4369.6,0.2816]
[1756595642706,3.2078,4369.8,4369.7,0.1897]
[1756595642906,3.2078,4369.8,4369.7,0.4713]
[1756595643107,3.5079,4369.8,4369.7,0.4713]
[1756595643410,3.7038,4369.8,4369.7,0.4713]
[1756595645105,0.496,4369.8,4369.7,0.4713]
[1756595645307,0.496,4370.2,4370.1,0.4713]
[1756595645711,0.496,4370.2,4369.8,0.2816]
[1756595645910,0.496,4370.2,4369.6,0.2816]
[1756595646311,0.496,4370.2,4370.1,0.1897]
[1756595646511,0.496,4370.2,4370.1,0.4713]
[1756595646714,0.496,4370.2,4369.9,0.2816]
[1756595658320,0.496,4370.2,4369.5,0.23]
[1756595658321,0.5058,4369.6,4369.5,0.4971]
[1756595658518,0.3051,4369.5,4369.4,3.5093]
[1756595658722,0.5058,4369.5,4369.4,3.7393]
[1756595658927,0.5058,4369.5,4369.4,3.9349]
[1756595662225,0.3051,4370.2,4369.4,3.6334]
[1756595662421,0.3051,4370.2,4369.5,0.3015]
[1756595662925,0.5058,4369.6,4369.5,0.4971]
[1756595664524,0.5058,4369.6,4369.5,0.7271]
[1756595665319,0.5058,4369.6,4369.5,2.35742171]
[1756595667321,0.5058,4369.6,4369.5,0.7271]
[1756595668524,0.3051,4370.2,4369.6,0.3015]
[1756595668718,0.2007,4369.9,4369.8,0.4971]
[1756595668923,0.5058,4369.9,4369.8,0.7271]
[1756595669117,0.3051,4369.9,4369.8,0.7271]
[1756595669324,0.3051,4370.2,4370.1,0.4971]
[1756595669524,3.5129,4370.3,4370.1,0.4256]
[1756595669720,3.5129,4370.3,4370.2,0.4971]
[1756595669721,0.3051,4370.3,4370.2,0.4971]
[1756595670830,3.2078,4371.0,4370.3,0.3015]
[1756595671124,0.2007,4370.5,4370.4,0.7271]
[1756595671318,0.5058,4370.5,4370.4,0.7271]
[1756595684836,0.5058,4370.5,4370.4,0.23]
[1756595686136,0.5058,4370.5,4370.4,0.7418]
[1756595688040,0.5058,4370.5,4370.4,0.5118]
[1756595688241,0.5058,4370.5,4370.4,0.2042]
[1756595688441,0.5058,4370.5,4370.4,0.23]
[1756595691440,0.2948,4370.4,4370.2,3.5154]
[1756595691645,0.4946,4370.3,4370.2,3.7196]
[1756595691845,0.4946,4370.3,4370.2,3.9496]
[1756595692140,0.4946,4370.3,4370.2,3.4378]
[1756595692645,0.4946,4370.3,4370.2,3.9496]
[1756595695752,0.4946,4370.3,4370.2,3.7196]
[1756595695945,0.4946,4370.3,4370.2,3.9496]
[1756595696346,0.4946,4370.3,4370.2,0.7418]
[1756595696745,0.4946,4370.3,4370.2,0.23]
[1756595699150,0.4946,4370.3,4370.2,1.86579543]
[1756595699355,0.4946,4370.3,4370.2,0.23]
[1756595699557,0.4946,4370.3,4370.2,0.7418]
[1756595699750,0.2948,4370.3,4370.2,2.37759543]
[1756595700056,0.4946,4370.3,4370.2,2.37759543]
[1756595700354,3.4076,4370.7,4370.6,0.5118]
[1756595700747,0.1998,4370.7,4370.6,0.5118]
[1756595700954,0.4946,4370.7,4370.6,0.5118]
[1756595701150,0.2948,4371.2,4370.7,0.3076]
[1756595701455,0.2948,4371.2,4370.3,1.63579543]
[1756595701456,0.4946,4371.2,4371.1,0.5118]
[1756595701651,1.00358427,4371.2,4371.1,0.5118]
[1756595702053,0.4946,4371.2,4371.1,0.5118]
[1756595702355,3.2078,4371.3,4371.2,0.5118]
[1756595704752,0.4946,4371.7,4371.6,0.2042]
[1756595704958,0.4946,4371.7,4371.6,0.5118]
[1756595706056,0.4946,4371.1,4371.0,2.14759543]
[1756595706256,0.4946,4371.1,4371.0,0.7418]
[1756595707957,0.4946,4371.1,4371.0,0.4342]
[1756595708250,0.4946,4371.1,4371.0,0.4263]
[1756595708452,0.4946,4371.1,4371.0,0.7093]
[1756595714059,0.4946,4371.1,4370.7,4.84359543]
[1756595714060,0.3063,4371.0,4370.9,0.23]
[1756595714261,0.5108,4371.0,4370.9,0.23]
[1756595715455,0.5108,4371.0,4370.9,0.513]
[1756595716863,0.5108,4371.0,4370.9,0.283]
[1756595717159,0.5108,4371.0,4370.7,3.2078]
[1756595717365,0.5108,4370.9,4370.8,0.23]
[1756595718058,0.3063,4370.8,4370.7,0.23]
[1756595718259,0.5108,4370.8,4370.7,0.23]
[1756595720561,0.5108,4370.8,4370.5,0.23]
[1756595721760,0.5108,4370.8,4370.6,0.283]
[1756595722863,0.5108,4370.8,4370.7,0.4793]
[1756595723369,0.2045,4370.8,4370.3,0.283]
[1756595723563,0.5108,4370.6,4370.4,0.23]
[1756595724063,0.3063,4370.5,4370.4,0.513]
[1756595724265,0.5108,4370.5,4370.4,0.513]
[1756595727160,0.5108,4370.5,4370.4,0.7093]
[1756595728468,0.2045,4370.3,4370.2,0.283]
[1756595728664,0.5108,4370.1,4370.0,3.4908]
[1756595728868,0.5108,4370.1,4370.0,3.7208]
[1756595729270,0.5108,4370.1,4370.0,0.7093]
[1756595730768,0.3063,4370.0,4369.9,0.23]
[1756595730971,0.5108,4370.0,4369.9,0.23]
[1756595731266,0.5108,4370.0,4369.9,0.513]
[1756595731868,0.5108,4370.0,4369.9,0.283]
[1756595732865,0.5108,4370.0,4369.8,0.23]
[1756595733074,3.7186,4369.9,4369.8,0.23]
[1756595733375,3.7186,4369.9,4369.8,0.513]
[1756595734270,3.7186,4369.9,4369.8,0.23]
[1756595734476,3.7186,4369.9,4369.8,0.7093]
[1756595735477,3.7186,4369.9,4369.8,0.4263]
[1756595735777,3.7186,4369.9,4369.5,0.23]
[1756595735974,3.7186,4369.9,4369.6,0.283]
[1756595740577,3.7186,4369.9,4369.3,0.2925]
[1756595740783,0.2967,4369.8,4369.1,32.961]
[1756595740977,0.2967,4369.2,4368.6,0.2925]
[1756595741177,0.5038,4368.7,4368.6,0.48]
[1756595741384,0.5038,4368.7,4368.6,0.71]
[1756595747087,0.5038,4368.7,4368.6,0.48]
[1756595747283,0.5038,4368.7,4368.6,0.71]
[1756595748690,0.5038,4368.7,4368.6,0.4175]
[1756595749490,0.5038,4368.7,4368.6,0.71]
[1756595751886,3.2078,4369.4,4368.6,0.71]
[1756595752193,0.2967,4368.8,4368.7,0.48]
[1756595752688,0.5038,4368.8,4368.7,0.48]
[1756595759811,0.5038,4368.8,4368.7,0.71]
[1756595764015,0.5038,4368.8,4368.7,0.23]
[1756595764215,0.5038,4368.8,4368.7,0.71]
[1756595768216,0.5038,4368.8,4368.7,0.4175]
[1756595768518,0.4733,4368.7,4368.6,0.23]
[1756595772309,0.4733,4368.7,4368.6,0.7221]
[1756595772511,3.2078,4369.4,4369.2,0.1939]
[1756595772715,3.2078,4369.4,4369.3,0.2982]
[1756595772914,3.2078,4369.4,4369.3,0.4921]
[1756595773119,0.2859,4369.6,4369.3,0.4921]
[1756595773421,0.2859,4369.9,4369.8,0.4921]
[1756595777015,0.2859,4369.9,4369.6,0.23]
[1756595777016,0.2859,4370.4,4369.9,0.2982]
[1756595777219,0.51473,4370.4,4369.9,0.2982]
[1756595777419,0.1874,4370.0,4369.9,0.4921]
[1756595777621,0.4733,4370.0,4369.9,0.4921]
[1756595779319,3.2078,4370.5,4369.9,0.1939]
[1756595779515,3.2078,4370.5,4370.4,0.4921]
[1756595779715,3.2078,4370.5,4370.4,0.7221]
[1756595780925,3.2078,4371.0,4370.4,0.4239]
[1756595781122,3.3952,4371.0,4370.9,0.1939]
[1756595781424,3.3952,4371.0,4370.9,0.4921]
[1756595781728,3.6811,4371.0,4370.9,0.4921]
[1756595782818,3.6811,4371.0,4370.4,0.23]
[1756595783014,3.6811,4371.0,4370.5,0.2982]
[1756595783915,3.6811,4371.0,4370.9,0.1939]
[1756595784119,3.6811,4371.0,4370.9,0.4921]
[1756595785932,3.6811,4371.0,4370.9,0.1939]
[1756595786637,0.4733,4371.0,4370.7,0.2982]
[1756595786933,0.4733,4371.0,4370.5,0.2982]
[1756595787528,0.4733,4371.0,4370.9,0.1939]
[1756595787729,0.4733,4371.0,4370.9,0.4921]
[1756595796834,3.2078,4371.6,4370.9,0.4921]
[1756595797036,0.4733,4371.5,4371.4,0.4921]
[1756595805541,0.4784,4371.5,4371.4,0.4816]
[1756595806837,0.2861,4372.0,4371.3,0.23]
[1756595807037,0.4784,4371.2,4371.1,0.4757]
[1756595807234,0.4784,4371.2,4371.1,0.7057]
[1756595807843,0.4784,4371.2,4371.1,0.4757]
[1756595808039,0.4784,4371.2,4371.1,0.7057]
[1756595808241,0.4784,4371.2,4371.1,2.34149543]
[1756595812245,0.4784,4371.2,4371.1,0.7057]
[1756595817746,0.4784,4371.2,4371.1,3.9135]
[1756595819146,0.2861,4371.9,4371.1,3.6258]
[1756595819341,0.4784,4371.8,4371.7,0.4757]
[1756595821358,3.4939,4372.0,4371.8,0.2877]
[1756595821552,3.4939,4372.0,4371.9,0.418]
[1756595821751,3.6862,4372.0,4371.9,0.7057]
[1756595822054,3.2078,4372.0,4371.9,0.7057]
[1756595823255,0.2861,4372.3,4372.0,0.2877]
[1756595823455,0.2861,4372.3,4372.2,0.188]
[1756595823653,0.2861,4372.3,4372.2,0.7057]
[1756595823849,0.4784,4372.3,4372.2,0.7057]
[1756595824056,0.4784,4372.3,4372.2,0.4757]
[1756595824259,0.4784,4372.3,4372.2,0.7057]
[1756595824458,0.4784,4372.3,4372.2,0.4757]
[1756595824659,0.4784,4372.3,4372.2,0.7057]
[1756595825956,0.4784,4372.3,4372.2,0.4757]
[1756595826155,0.4784,4372.3,4372.2,0.7057]
[1756595827356,0.2031,4372.1,4372.0,1.63113172]
[1756595827655,0.5048,4372.1,4372.0,2.16753172]